Cogmind - Beta 14 @@@ ROGUE MODE // 2024.10.12 @ 13:54:38 Player: Glitch Artist Result: Self-destructed Performance ------------- Evolutions (1) 500 Regions Visited (2) 400 Robots Destroyed (9) 45 Value Destroyed (99) 99 Prototype IDs (0) 0 Alien Tech Used (0) 0 Bonus (0) 0 TOTAL SCORE: 1044 Bonus ------- None Cogmind --------- Core Integrity 203/400 Matter 221/500 Energy 34/100 System Corruption 0% Temperature Warning (396) Movement Core (1500) Ox29 Location -9/Materials Parts ------- > --- POWER (1) -------- (None) > --- PROPULSION (3) --- (None) > --- UTILITY (3) ------ Huge Storage Unit High-capacity Matter Pod Visual Processing Unit > --- WEAPON (2) ------- Beam Rifle Beam Rifle > --- INVENTORY (25) --- Wheel Wheel Compact Wheel Improved Terrain Scanner Peak State ------------ > --- POWER ------------ Ion Engine > --- PROPULSION ------- Wheel Armored Wheel Armored Wheel > --- UTILITY ---------- Huge Storage Unit High-capacity Matter Pod Visual Processing Unit > --- WEAPON ----------- Beam Rifle Beam Rifle > --- INVENTORY -------- Wheel Wheel Compact Wheel Improved Terrain Scanner [Rating: 14] Favorites ----------- Power Ion Engine Engine Ion Engine Propulsion Wheel Wheel Wheel Utility High-capacity Matter Pod Device Tractor Beam Storage High-capacity Matter Pod Processor Visual Processing Unit Weapon Assault Rifle Energy Gun Beam Rifle Ballistic Gun Assault Rifle Build | -11 -10 -9 ------- Run | Yrd Mat Mat Slots Evolved 2 | . . 2 Power . | . . . Propulsion 1 | . . 1 Utility 1 | . . 1 Weapon . | . . . Parts Attached 19 | 8 4 7 Power 2 | 1 . 1 Engine 2 | 1 . 1 Core . | . . . Reactor . | . . . Propulsion 7 | 4 . 3 Treads . | . . . Leg . | . . . Wheel 7 | 4 . 3 Hover . | . . . Flight . | . . . Utility 7 | 2 4 1 Device 2 | 2 . . Storage 4 | . 4 . Processor 1 | . . 1 Hackware . | . . . Protection . | . . . Artifact . | . . . Weapon 3 | 1 . 2 Energy Gun 2 | . . 2 Energy Cannon . | . . . Ballistic Gun 1 | 1 . . Ballistic Cannon . | . . . Launcher . | . . . Special Weapon . | . . . Impact Weapon . | . . . Slashing Weapon . | . . . Piercing Weapon . | . . . Special Melee Weapon . | . . . Unidentified Prototypes . | . . . Parts Lost 5 | . 1 4 Power 2 | . 1 1 Propulsion 2 | . . 2 Utility . | . . . Weapon 1 | . . 1 Highest Loss Streak 4 | . 1 4 To Critical Strikes . | . . . Average Slot Usage (%) 86 | . 83 91 Engine 10 | . 12 8 Wheel 29 | . 28 30 Device 1 | . 1 . Storage 24 | . 26 22 Processor 4 | . . 11 Energy Gun 4 | . . 12 Ballistic Gun 11 | . 14 6 Peak Build Rating 14 | 8 8 14 Average Rating 7 | 5 6 11 On Entrance 4 | . 8 5 Naked Turns . | . . . Heaviest Build 95 | 9 91 95 Greatest Support 34 | 26 20 34 Greatest Overweight (x) 4 | . 4 3 Average Overweight (x) 1 | . 1 2 Largest Inventory Capacity 25 | 5 25 25 Average Capacity 13 | 5 16 25 Most Carried 6 | 5 6 5 Average Carried 4 | 3 5 4 Final Capacity 25 | 5 25 25 Final Carried 6 | 5 6 4 Class Distribution -------------------- 100% | Mutant Dominant Class ---------------- Mutant | -10/Materials Mutant | -9/Materials Resources | -11 -10 -9 ----------- Run | Yrd Mat Mat Matter Collected 400 | 379 21 . Remotely 241 | 241 . . Salvage Created 254 | 184 21 49 Parts 18 | 13 4 1 Haulers Intercepted . | . . . Recyclers Shooed . | . . . Parts Field Recycled . | . . . Retrieved Matter . | . . . Parts Self-Destructed . | . . . Prevented . | . . . Kills | -11 -10 -9 ------- Run | Yrd Mat Mat Combat Hostiles Destroyed 1 | . . 1 Guns 1 | . . 1 Classes Destroyed 5 | 3 1 1 Worker 2 | 2 . . Tunneler 4 | 4 . . Recycler 1 | 1 . . Watcher 1 | . 1 . Duelist 1 | . . 1 Best Kill Streak 4 | 4 1 1 Combat Bots Only 1 | . . 1 Max Kills in Single Turn 1 | 1 1 1 Gunslinging . | . . . Exploded . | . . . Melee . | . . . Uniques/NPCs Destroyed . | . . . Combat | -11 -10 -9 -------- Run | Yrd Mat Mat Hostile Shots Fired 61 | . 10 51 Missed 12 | . 4 8 Damage Taken 792 | . 162 630 Core 212 | . 15 197 Absorbed by Shields . | . . . Core Remaining (%) 97 | 100 94 . Volleys Fired 49 | 33 5 11 Largest 2 | 1 1 2 Hottest 112 | 20 20 112 Shots Fired 57 | 33 5 19 Gun 57 | 33 5 19 Cannon . | . . . Launcher . | . . . Special . | . . . Kinetic 38 | 33 5 . Thermal 19 | . . 19 Explosive . | . . . Electromagnetic . | . . . Robot Hit Streak 7 | 7 2 4 Robot Miss Streak 4 | 4 3 4 Penetration Max . | . . . Secondary Targets . | . . . Shots Hit Robots 35 | 22 2 11 Core Hits 12 | 8 1 3 Critical Kills 1 | . 1 . Critical Parts Destroyed 1 | 1 . . Critical Strikes 4 | 1 1 2 Burn 2 | . . 2 Destroy 2 | 1 1 . Melee Attacks . | . . . Impact . | . . . Slashing . | . . . Piercing . | . . . Sneak Attacks . | . . . Combat Hostiles . | . . . Follow-up Attacks . | . . . Damage Inflicted 495 | 264 27 204 Guns 495 | 264 27 204 Cannons . | . . . Explosions . | . . . Melee . | . . . Ramming . | . . . Kinetic 291 | 264 27 . Thermal 204 | . . 204 Explosive . | . . . Electromagnetic . | . . . Impact . | . . . Slashing . | . . . Piercing . | . . . Highest Corruption . | . . . Average Corruption . | . . . Corruption Purged . | . . . Corruption Blocked . | . . . Overload Shots . | . . . Overflow Damage . | . . . Projectiles . | . . . Explosions . | . . . Melee . | . . . Knockbacks . | . . . Impact . | . . . Kinetic . | . . . Secondary . | . . . Self-Inflicted Damage . | . . . Shots . | . . . Rammed . | . . . Targets Rammed . | . . . Kicked . | . . . Crushed . | . . . Highest Temperature 390 | . . 390 Average Temperature 146 | . . 146 Received Heat Transfer 246 | . 42 204 Siege Activations . | . . . Robots Corrupted . | . . . Combat Hostiles . | . . . Parts Fried . | . . . Impact Corruptions . | . . . Robots Melted . | . . . Combat Hostiles . | . . . Parts Melted . | . . . Heat Transferred 666 | . . 666 Parts Sabotaged . | . . . Parts Stolen . | . . . Parts Stripped . | . . . Power Chain Reactions . | . . . Alert | -11 -10 -9 ------- Run | Yrd Mat Mat Peak Influence 59 | 35 59 45 Initial 22 | . 22 20 Average 26 | 14 41 23 Maximum Alert Level . | . . . Low Security (%) 100 | 100 100 100 Level 1 . | . . . Level 2 . | . . . Level 3 . | . . . Level 4 . | . . . Level 5 . | . . . High Security . | . . . Max Security . | . . . Squads Dispatched 2 | . 1 1 Investigation . | . . . Extermination . | . . . Reinforcement 2 | . 1 1 Assault . | . . . Garrison . | . . . Intercept . | . . . Searches Triggered . | . . . Construction Impeded . | . . . Haulers Reinforced . | . . . Active Scanning Responses . | . . . Cargo Convoy Interrupts . | . . . Stealth | -11 -10 -9 --------- Run | Yrd Mat Mat Distress Signals 1 | . . 1 Communications Jammed . | . . . Distress Signals . | . . . Times Spotted 11 | . 5 6 Peak Tracking Total 5 | . 3 5 Tactical Retreats . | . . . Traps | -11 -10 -9 ------- Run | Yrd Mat Mat Traps Triggered 2 | . 2 . Indirectly . | . . . Trap Hack Attempts . | . . . Triggered . | . . . Disarmed . | . . . Reprogrammed . | . . . Reused . | . . . Traps Extracted . | . . . Installed . | . . . Triggered . | . . . Machines | -11 -10 -9 ---------- Run | Yrd Mat Mat Machines Disabled . | . . . Max in Single Turn . | . . . Machines Repaired . | . . . Machines Dismantled . | . . . Machines Sabotaged . | . . . Overloaded Fab Kills . | . . . Hacking | -11 -10 -9 --------- Run | Yrd Mat Mat Machines Accessed . | . . . Terminals . | . . . Fabricators . | . . . Repair Stations . | . . . Recycling Units . | . . . Scanalyzers . | . . . Garrison Access . | . . . Total Hacks . | . . . Successful . | . . . Failed . | . . . Catastrophic . | . . . Database Lockouts . | . . . Manual . | . . . Terminals . | . . . Fabricators . | . . . Repair Stations . | . . . Recycling Units . | . . . Scanalyzers . | . . . Garrison Access . | . . . Terminal Hacks . | . . . Fabricator Hacks . | . . . Repair Station Hacks . | . . . Recycling Unit Hacks . | . . . Scanalyzer . | . . . Garrison Access Hacks . | . . . Unauthorized Hacks . | . . . Terminals . | . . . Fabricators . | . . . Repair Stations . | . . . Recycling Units . | . . . Scanalyzers . | . . . Garrison Access . | . . . Data Cores Recovered . | . . . Used . | . . . Hacking Detections . | . . . Full Trace Events . | . . . Feedback Events . | . . . Feedback Blocked . | . . . Robot Schematics Acquired . | . . . Robots Built . | . . . Authchips . | . . . Time . | . . . Total Robot Build Rating . | . . . Part Schematics Acquired . | . . . Parts Built . | . . . Authchips . | . . . Time . | . . . Total Part Build Rating . | . . . Parts Repaired . | . . . Time . | . . . Parts Recycled . | . . . Recycled Matter . | . . . Retrieved Matter . | . . . Retrieved Components . | . . . Parts Scanalyzed . | . . . Part Schematics Acquired . | . . . Parts Damaged . | . . . Bothacking | -11 -10 -9 ------------ Run | Yrd Mat Mat Used RIF Installer . | . . . Robots Hacked . | . . . Non-combat . | . . . Combat . | . . . Robot Hacks Applied . | . . . Relay Couplers Released . | . . . Fabnet Peak Effective % . | . . . Robots Rewired . | . . . Allies Hacked . | . . . Hacks Repelled . | . . . Allies | -11 -10 -9 -------- Run | Yrd Mat Mat Total Allies . | . . . Largest Group . | . . . Highest-Rated Group . | . . . Highest-Rated Ally . | . . . Total Orders . | . . . Ally Attacks . | . . . Total Damage . | . . . Kills . | . . . Allies Corrupted . | . . . Allies Melted . | . . . Intel | -11 -10 -9 ------- Run | Yrd Mat Mat Robot Analysis Total . | . . . Derelict Logs Recovered . | . . . Drone Launches . | . . . Drone Recoveries . | . . . Exploration | -11 -10 -9 ------------- Run | Yrd Mat Mat Turns Passed 435 | 179 156 100 Spaces Moved 297 | 115 133 49 Core 16 | 16 . . Treads . | . . . Legs . | . . . Wheels 281 | 99 133 49 Hover . | . . . Flight . | . . . Fastest Speed 50 | 50 80 116 Average Speed 96 | 79 103 117 Slowest Speed 140 | 90 140 125 Overloaded Moves . | . . . Propulsion Burnouts . | . . . Robots Hopped . | . . . Cave-ins Triggered . | . . . Exploration Rate (%) 13 | 6 27 7 Regions Visited 2 Branch Regions . Pre-discovered Areas . | . . . Known Exits Taken . | . . . Unknown Exits Taken 2 | 1 1 . Scrap Searched . | . . . Spaces Dug . | . . . Terrain Destroyed . | . . . Melee . | . . . Projectile . | . . . AOE . | . . . Terrain Rammed . | . . . Walls Destroyed . | . . . Machines Disabled . | . . . Actions | -11 -10 -9 --------- Run | Yrd Mat Mat Total 386 | 168 146 72 Wait . | . . . Move 295 | 114 132 49 Hop . | . . . Pick Up 19 | 12 3 4 Fast Attach . | . . . Attach 11 | 6 . 5 Detach . | . . . Swap 8 | 2 4 2 Drop 4 | 1 2 1 Fire 49 | 33 5 11 Melee . | . . . Ram . | . . . Kick . | . . . Crush . | . . . Escape Stasis . | . . . Rewire . | . . . Trap . | . . . Miscellaneous . | . . . Route ------- -11/Scrapyard -10/Materials (discovered 2 exits: [*Mat] / [*Min]) -9/Materials History --------- Turn | Location | Event 7 | -11/Scrapyard | Discovered new exit (range 15) 180 | -11/Scrapyard | Entered Materials 238 | -10/Materials | Discovered new exit (range 8) 301 | -10/Materials | Build established: Mutant 318 | -10/Materials | Discovered new exit (range 12) 336 | -10/Materials | Entered another Materials area 336 | -9/Materials | Evolved 2 slots: Propulsion x1, Utility x1 436 | -9/Materials | Self-destructed Last Messages --------------- 00346_ Acquired Arm. Wheel. 00352_ Dropped Wheel. 00354_ Acquired Beam Rifle. 00395_ O-16 Technician sends out distress signal. 00395_ O-16 Technician: "IFF HANDSHAKE FAILED. SECURING TERMINAL." 00397_ Assault Rifle destroyed. 00398_ ALERT: Hostiles spotted, dispatching reinforcements to Terminal M008. 00413_ Arm. Wheel severed. 00414_ K-01 Serf collects debris. 00417_ M-13 Machinist repairs G-34 Mercenary. 00418_ Ion Engine destroyed. 00418_ L-31 Rogue suffers critical hit (Burn). 00424_ G-34 Mercenary suffers critical hit (Burn). 00424_ L-31 Rogue destroyed. 00432_ Arm. Wheel destroyed. 00434_ Wheel destroyed. Map ----- +----------------------------------------------------+ | ?????????????????????????????????????????????????? | | ?????????????????????????????????????????????????? | | ?????????????????????????????????????????????????? | | ?????????????????????????????????????????????????? | | ?????????????????????????????????????????????????? | | ?????????????????????????????????????????????????? | | ?????????????????????????????????????????????????? | | ?????????????????????????????????????????????????? | | ?????????????????????????????????????????????????? | | ?????????????????????????????????????????????????? | | ?????????????????????????????????????????????????? | | ?????????????????????????????????????????????????? | | ???????????????????????????? ???????????????????? | | ???????????????????????????? ???????????????????? | | ???????????????????????????? ???????????????????? | | ???????????????????????????? ???????????????????? | | ???????????????????????????? ???????????????????? | | ????????????????????###????##+###########+####???? | | ????????????????????# ??# #???? | | ????????????????????# # +???? | | ????????????????????+ + #???? | | ????????????????????# # #####+####### #???? | | ????????????????????#####??# # #????????? | | ???????????????## ????????# # #????????? | | ??????????????## ####### # #????????? | | ????????# o @%* # #????????? | | ????????# T g g # #????????? | | ?????????? Y # #????????? | | ??????????? #### ####### g #????????? | | ???????????????###+#???????# # #????????? | | ???????????????????????????# # #????????? | | ???????????????????????????# ##########????????? | | ???????????????????????????# #?????????????? | | ???????????????????????????# #?????????????? | | ???????????????????????????# #?????????????? | | ?????????????????????????######+######???????????? | | ?????????????????????????# #???????????? | | ?????????????????????????# """ #???????????? | | ?????????????????????????# [ """ #???????????? | | ?????????????????????????# = """ #???????????? | | ?????????????????????????# #???????????? | | ?????????????????????????# #???????????? | | ?????????????????????????# #???????????? | | ?????????????????????????#############???????????? | | | | | | | | | | | | | +----------------------------------------------------+ Best States ------------- Heat Dissipation 28 Energy Generation 10 Energy Capacity 250 Matter Stores 300 Matter Capacity 500 Sight Range 18 Terrain Scan Range 16 Terrain Scan Density 10 Evasion (%) 50 Item Schematics ----------------- None Robot Schematics ------------------ None Fabricated ------------ Nothing Alien Tech Used ----------------- None Achievements -------------- Use The Force Challenges ------------ None Game ------ Seed AntimissileSubatomicGun Manual? 0 Play Time 00:06:33 Cumulative 4.9 hours Start 2024.10.12 @ 13:49:00 End 2024.10.12 @ 13:54:38 Sessions 1 Manual Loads 0 Difficulty Rogue Special Mode None Game No. 8 Rogue 6 Adventurer 0 Explorer 2 Win Type - Total 0 Types 0/0/0/0/0/0/0/0/0 Lore% 2 Gallery% 12 Achievement% 16 Wizard Run 0 Options --------- Layout 1 ASCII 0 Keyboard 0 Movement Mouse Keybinds 0 Fullscreen 2 Font 24/X11 Map View 50x35 Zoom Use 0% Tactical HUD 1 Map Filters NONE Filters NONE Steam 1 RUN: beb45ea4-f6ba-48c6-a755-aa7fbc030ab8